fUSD/lending_fUSD_20240119
["ID","MTS","AMOUNT","RATE_DAILY","PERIOD"]
[312217818,1705691440221,-915.09038529,0.00023499,2]
[312217819,1705691440230,-915.09038529,0.00023499,2]
[312217820,1705691440240,-915.09038529,0.00023499,2]
[312217821,1705691440249,-915.09038529,0.00023499,2]
[312217822,1705691440258,-915.09038529,0.00023499,2]
[312217823,1705691440268,-915.09038529,0.00023499,2]
[312217824,1705691440277,-915.09038529,0.00023499,2]
[312217825,1705691440286,-915.09038529,0.00023499,2]
[312217826,1705691440296,-915.09038529,0.00023499,2]
[312217827,1705691440305,-915.09038529,0.00023499,2]
[312217829,1705691440315,-440.59390355,0.00023499,2]
[312217831,1705691440324,-1372.6355779,0.00023499,2]
[312217832,1705691440334,-1532414.18818595,0.000235,3]
[312217833,1705691440343,-155.90473129,0.000235,2]
[312217834,1705691440352,-170.32894226,0.00023509,2]
[312217835,1705691440361,-150.0,0.00023546,2]
[312217836,1705691440371,-184.28,0.00023571,2]
[312217837,1705691440380,-170.32894226,0.00023611,2]
[312217838,1705691440389,-164.11837322,0.00023627,2]
[312217839,1705691440399,-400.0,0.000237,8]
[312217840,1705691440408,-170.32894226,0.00023712,2]
[312217841,1705691440417,-184.28,0.00023718,2]
[312217842,1705691440427,-157.25,0.00023779,2]
[312217843,1705691440438,-900.0,0.000238,8]
[312217845,1705691440447,-170.32894226,0.00023814,2]
[312217846,1705691440457,-164.11837322,0.00023854,2]
[312217847,1705691440466,-184.28,0.00023865,2]
[312217848,1705691440476,-1300.0,0.000239,8]
[312217849,1705691440486,-170.32894226,0.00023916,2]
[312217850,1705691440495,-201.16205573,0.00024,2]
[312217851,1705691440506,-431.59040182,0.00024,2]
[312217852,1705691440515,-184.28,0.00024012,2]
[312217853,1705691440524,-170.32894226,0.00024018,2]
[312217854,1705691440533,-500.0,0.00024065,2]
[312217855,1705691440543,-164.11837322,0.00024081,2]
[312217856,1705691440552,-170.32894226,0.00024119,2]
[312217857,1705691440562,-184.28,0.00024159,2]
[312217858,1705691440572,-170.32894226,0.00024221,2]
[312217859,1705691440581,-266.27,0.00024291,2]
[312217860,1705691440591,-167.0,0.00024297,2]
[312217861,1705691440600,-184.28,0.00024306,2]
[312217862,1705691440609,-164.11837322,0.00024309,2]
[312217863,1705691440619,-170.32894226,0.00024323,2]
[312217864,1705691440628,-1877.22620581,0.00024355,2]
[312217865,1705691440637,-1000.0,0.000244,2]
[312217866,1705691440646,-4570.4174,0.000244,2]
[312217867,1705691440656,-170.32894226,0.00024424,2]
[312217868,1705691440665,-184.28,0.00024453,2]
[312217869,1705691440674,-155.19,0.00024463,2]
[312217870,1705691440687,-170.32894226,0.00024526,2]
[312217871,1705691440696,-164.11837322,0.00024536,2]
[312217872,1705691440706,-310896.28979506,0.00024557,3]
[312217873,1705691440719,-1150.36159672,0.00024557,3]
[312217874,1705691440731,-350.97828277,0.00024557,3]
[312217875,1705691440774,-539.19362387,0.00024557,3]
[312217876,1705691440785,-500.0,0.00024557,3]
[312217877,1705691440797,-566.21438983,0.00024557,3]
[312217878,1705691441126,-17681.49061396,0.00024557,3]
[312217879,1705691441139,-314.49519184,0.00024557,3]
[312217880,1705691441188,-706.96872759,0.00024557,3]
[312217881,1705691441199,-3980.3732,0.00024557,3]
[312217882,1705691441210,-1813.55859129,0.00024557,3]
[312217883,1705691441249,-4187.26782,0.00024557,3]
[312217884,1705691441941,-2902.84819354,0.00024557,3]
[312217885,1705691441953,-265.380005,0.00024557,3]
[312217886,1705691441999,-1659.77367416,0.00024557,3]
[312217910,1705691443160,-2356.43042742,0.00024557,3]
[312217911,1705691443287,-5668.86894512,0.00024557,3]
[312217934,1705691445983,-10424.99999999,0.00024557,3]
[312217935,1705691445999,-12400.0,0.00024557,3]
[312217936,1705691446419,-3196.94551407,0.00024557,3]
[312217937,1705691446431,-10485.49999998,0.00024557,3]
[312217938,1705691446453,-2502.2830027,0.00024557,3]
[312217939,1705691446469,-83749.9699457,0.00024557,3]
[312217940,1705691446481,-3753.31926561,0.00024557,3]
[312217941,1705691446495,-14783.75656449,0.00024557,3]
[312217947,1705692112554,-384.3215283,0.00020749,2]
[312217948,1705692112575,-327.24908451,0.0002075,2]
[312217949,1705692112596,-471.42938719,0.0002075,2]
[312217950,1705692392788,64.12195792,0.00017871,2]
[312217951,1705692392817,106.89804208,0.00017871,2]
[312217954,1705692403678,171.48,0.00016712,2]
[312217977,1705692632388,-155.0,0.00020516,2]
[312217978,1705692632399,-155.0,0.00020517,2]
[312217979,1705692632409,-196.98832126,0.00020518,2]
[312217980,1705692632419,-324.40327525,0.00020518,2]
[312217985,1705692632525,-218.9997332,0.00020518,2]
[312217986,1705692632535,-395.27225416,0.00020518,2]
[312217987,1705692632545,-384.3215283,0.00020518,2]
[312217988,1705692632554,-315.80162128,0.00020518,2]
[312217989,1705692632565,-354.6619,0.00020518,2]
[312217990,1705692632583,-1934.53667649,0.00020518,2]
[312217991,1705692632593,-1178.56113027,0.00020519,2]
[312217992,1705692632602,-155.0,0.00020519,2]
[312217993,1705692632611,-211.75204362,0.00020519,2]
[312217994,1705692632621,-155.0,0.00020519,2]
[312217995,1705692632630,-1203.89194118,0.0002052,2]
[312217996,1705692632639,-337.71417156,0.0002052,2]
[312217997,1705692632648,-524.96209547,0.00020521,2]
[312217998,1705692632658,-4488.84853076,0.00020521,2]
[312217999,1705692632668,-10527.95115229,0.00020521,2]
[312218000,1705692632678,-199.29466552,0.00020522,2]
[312218001,1705692632688,-761.49975379,0.00020522,2]
[312218002,1705692632700,-1209.55348995,0.00020522,2]
[312218003,1705692632712,-292.16600001,0.00020522,2]
[312218004,1705692632747,-31502.23690963,0.00020522,2]
[312218005,1705692632757,-150.0,0.00020522,2]
[312218006,1705692632767,-314.36106493,0.00020523,2]
[312218007,1705692632778,-1961.69316483,0.00020523,2]
[312218008,1705692632790,-3626.06527258,0.00020523,2]
[312218009,1705692632800,-333.73936604,0.00020535,2]
[312218010,1705692632810,-581.91,0.00020633,2]
[312218011,1705692632820,-744.59,0.00020633,2]
[312218012,1705692632829,-6956.43,0.00020633,2]
[312218013,1705692632839,-155.0,0.00020638,2]
[312218014,1705692632849,-343.02606752,0.00020643,2]
[312218015,1705692632860,-250.28559694,0.00020643,2]
[312218016,1705692632873,-246.65556491,0.00020643,2]
[312218017,1705692632882,-234.3809266,0.00020643,2]
[312218018,1705692632897,-289.71028567,0.00020648,2]
[312218019,1705692632906,-334.37,0.00020681,2]
[312218020,1705692632917,-16784.65199409,0.00020746,2]
[312218021,1705692632927,-333.73936589,0.0002079,2]
[312218022,1705692632936,-333.73936589,0.00021045,2]
[312218023,1705692632947,-333.73936589,0.000213,2]
[312218024,1705692632957,-333.73936589,0.00021555,2]
[312218025,1705692632971,-203.0,0.00021705,2]
[312218026,1705692632981,-333.73936589,0.0002181,2]
[312218027,1705692632990,-196.83,0.00021876,2]
[312218028,1705692633001,-250.0,0.000219,2]
[312218029,1705692633011,-649.53,0.00021923,2]
[312218030,1705692633021,-325.48,0.00021929,2]
[312218031,1705692633031,-333.73936589,0.00022065,2]
[312218032,1705692633041,-500.0,0.00022102,2]
[312218033,1705692633050,-940.48918206,0.00022169,2]
[312218034,1705692633059,-295.46237176,0.0002217,2]
[312218035,1705692633069,-662.09522237,0.00022171,2]
[312218036,1705692633079,-250.0,0.00022291,2]
[312218037,1705692633089,-333.73936589,0.0002232,2]
[312218038,1705692633099,-466.75,0.00022338,2]
[312218039,1705692633109,-376.01,0.00022339,2]
[312218040,1705692633118,-250.0,0.00022374,2]
[312218041,1705692633128,-211.91,0.00022424,2]
[312218042,1705692633138,-155.09,0.00022437,2]
[312218043,1705692633148,-157.14,0.00022444,2]
[312218044,1705692633158,-159.8,0.00022498,2]
[312218045,1705692633168,-2000.0,0.0002254,2]
[312218046,1705692633178,-155.09,0.00022554,2]
[312218047,1705692633188,-210.0,0.00022574,2]
[312218048,1705692633198,-333.73936589,0.00022575,2]
[312218049,1705692633209,-157.51,0.00022645,2]
[312218050,1705692633220,-499.99,0.00022663,2]
[312218051,1705692633230,-155.09,0.00022671,2]
[312218052,1705692633239,-413.22,0.00022689,2]
[312218053,1705692633250,-2859.14138188,0.0002273,2]
[312218054,1705692633260,-10000.0,0.0002274,2]
[312218055,1705692633270,-155.09,0.00022787,2]
[312218056,1705692633280,-333.73936589,0.0002283,2]
[312218057,1705692633289,-413.22,0.00022833,2]
[312218058,1705692633299,-168.93,0.00022892,2]
[312218059,1705692633310,-155.09,0.00022904,2]
[312218060,1705692633320,-334.37,0.00022945,2]
[312218061,1705692633329,-413.22,0.00022976,2]
[312218062,1705692633339,-1008.11171313,0.00023,20]
[312218063,1705692633349,-155.09,0.00023021,2]
[312218064,1705692633358,-333.73936589,0.00023084,2]
[312218065,1705692633368,-413.22,0.00023119,2]
[312218066,1705692633378,-155.09,0.00023138,2]
[312218067,1705692633387,-155.09,0.00023255,2]
[312218068,1705692633396,-413.22,0.00023263,2]
[312218069,1705692633406,-466.75,0.00023317,2]
[312218070,1705692633417,-400.49631335,0.00023326,2]
[312218071,1705692633428,-333.73936589,0.00023339,2]
[312218072,1705692633439,-155.09,0.00023372,2]
[312218073,1705692633449,-350.47,0.00023399,2]
[312218074,1705692633460,-413.22,0.00023406,2]
[312218075,1705692633471,-155.09,0.00023489,2]
[312218076,1705692633481,-300.0,0.00023499,2]
[312218077,1705692633490,-300.0,0.00023499,2]
[312218078,1705692633499,-300.0,0.00023499,2]
[312218079,1705692633508,-300.0,0.00023499,2]
[312218080,1705692633518,-300.0,0.00023499,2]
[312218081,1705692633528,-300.0,0.00023499,2]
[312218082,1705692633537,-300.0,0.00023499,2]
[312218083,1705692633550,-300.0,0.00023499,2]
[312218084,1705692633561,-413.22,0.00023549,2]
[312218085,1705692633570,-1315.83000248,0.00023573,2]
[312218086,1705692633580,-333.73936589,0.00023594,2]
[312218087,1705692633589,-155.09,0.00023606,2]
[312218088,1705692633599,-413.22,0.00023693,2]
[312218089,1705692633609,-157.51,0.0002371,2]
[312218090,1705692633619,-155.0,0.00023834,2]
[312218091,1705692633630,-203.26057704,0.00023834,2]
[312218092,1705692633640,-244.89196865,0.00023834,2]
[312218093,1705692633651,-473.20829439,0.00023834,2]
[312218094,1705692633662,-155.0,0.00023834,2]
[312218095,1705692633671,-337.09073552,0.00023835,2]
[312218096,1705692633682,-177.82092224,0.00023835,2]
[312218097,1705692633691,-413.22,0.00023836,2]
[312218098,1705692633700,-333.73936589,0.00023849,2]
[312218099,1705692633710,-413.22,0.00023979,2]
[312218100,1705692633719,-431.59040182,0.00024,2]
[312218101,1705692633732,-201.16205573,0.00024,2]
[312218102,1705692633741,-151.9905901,0.00024062,2]
[312218103,1705692633750,-4529.5142,0.00024063,2]
[312218104,1705692633761,-587.6144,0.00024066,2]
[312218105,1705692633771,-333.73936589,0.00024104,2]
[312218106,1705692633780,-413.22,0.00024123,2]
[312218107,1705692633789,-215.52245444,0.0002414,2]
[312218108,1705692633799,-7782.77664326,0.0002416,2]
[312218109,1705692633811,-155.0,0.0002416,2]
[312218110,1705692633820,-529.25992824,0.00024161,2]
[312218111,1705692633830,-364.02742498,0.00024161,2]
[312218112,1705692633839,-155.0,0.00024161,2]
[312218113,1705692633848,-260.15368191,0.00024161,2]
[312218114,1705692633858,-1416.70167439,0.00024162,2]
[312218115,1705692633868,-696.56616729,0.00024162,2]
[312218116,1705692633878,-155.0,0.00024162,2]
[312218117,1705692633890,-525.13031087,0.00024162,2]
[312218118,1705692633899,-354.48402643,0.00024162,2]
[312218119,1705692633909,-265.46265303,0.00024163,2]
[312218120,1705692633918,-155.0,0.00024163,2]
[312218121,1705692633928,-501.38582748,0.00024163,2]
[312218122,1705692633937,-286.63734224,0.00024163,2]
[312218123,1705692633946,-10554.50841058,0.00024163,2]
[312218124,1705692633956,-220.39096062,0.00024164,2]
[312218125,1705692633967,-155.18262083,0.00024164,2]
[312218126,1705692633977,-4625.83140559,0.00024164,2]
[312218127,1705692633987,-204.37295178,0.00024164,2]
[312218128,1705692633996,-1709.04497142,0.00024164,2]
[312218129,1705692634006,-162.18930337,0.00024164,2]
[312218130,1705692634015,-1136.44128791,0.00024164,2]
[312218131,1705692634024,-158.77601689,0.00024164,2]
[312218132,1705692634033,-155.0,0.00024164,2]
[312218133,1705692634043,-196.72385676,0.00024164,2]
[312218134,1705692634052,-155.0,0.00024164,2]
[312218135,1705692634062,-155.20048069,0.00024164,2]
[312218136,1705692634071,-178.65938056,0.00024164,2]
[312218137,1705692634080,-2139.0919782,0.00024165,2]
[312218138,1705692634090,-392.88658677,0.00024175,2]
[312218139,1705692634099,-157.51,0.00024176,2]
[312218140,1705692634109,-180.0,0.00024219,2]
[312218141,1705692634119,-413.22,0.00024266,2]
[312218142,1705692634129,-466.75,0.00024295,2]
[312218143,1705692634138,-167.0,0.00024297,2]
[312218144,1705692634148,-19482.9798,0.0002431,2]
[312218145,1705692634157,-8555.9377,0.0002431,2]
[312218146,1705692634167,-25315.989,0.0002431,2]
[312218147,1705692634176,-391.0576,0.0002431,2]
[312218148,1705692634186,-7633.8898,0.0002431,2]
[312218149,1705692634197,-150.00000001,0.00024333,2]
[312218150,1705692634455,-2167.03820549,0.00024357,2]
[312218151,1705692634465,-333.73936589,0.00024359,2]
[312218152,1705692634476,-155.19,0.00024403,2]
[312218153,1705692634485,-413.22,0.00024409,2]
[312218154,1705692634495,-155.90473129,0.00024409,2]
[312218155,1705692634506,-342.76,0.0002441,2]
[312218156,1705692634516,-340066.0,0.0002441,2]
[312218157,1705692634525,-245000.0,0.00024457,2]
[312218158,1705692634534,-14789.1868,0.00024457,2]
[312218159,1705692634543,-1000.0,0.00024457,2]
[312218160,1705692634552,-352.54,0.000245,2]
[312218161,1705692634561,-256.96,0.000245,2]
[312218162,1705692634571,-413.22,0.00024553,2]
[312218163,1705692634580,-234.5243,0.00024554,2]
[312218164,1705692634589,-1070.18909292,0.00024554,2]
[312218165,1705692634601,-1265.65286724,0.00024554,2]
[312218166,1705692634611,-263.27381778,0.00024554,2]
[312218167,1705692634622,-155.0,0.00024554,2]
[312218168,1705692634631,-523.25671693,0.00024554,2]
[312218169,1705692634640,-5271.28765605,0.00024554,2]
[312218170,1705692634649,-486.28507678,0.00024554,2]
[312218171,1705692634659,-156.58819109,0.00024554,2]
[312218172,1705692634667,-447.51741754,0.00024555,2]
[312218173,1705692634676,-191.62183501,0.00024555,2]
[312218174,1705692634686,-291.79330877,0.00024556,2]
[312218175,1705692634695,-3171.50855976,0.00024556,2]
[312218176,1705692634704,-209.0,0.00024557,2]
[312218177,1705692634713,-3493.6277,0.00024557,2]
[312218178,1705692634723,-2000.0,0.00024557,3]
[312218179,1705692634732,-1000.0,0.00024557,2]
[312218180,1705692634741,-55555.0,0.00024557,2]
[312218181,1705692634750,-319.0772,0.00024557,2]
[312218182,1705692634759,-2292.21474165,0.00024557,2]
[312218183,1705692634768,-181.0375733,0.00024557,2]
[312218184,1705692634777,-362.91135459,0.00024557,2]
[312218185,1705692634787,-191.23153582,0.00024557,2]
[312218186,1705692634795,-167.0,0.00024571,2]
[312218187,1705692634805,-362.91135459,0.00024577,2]
[312218188,1705692634814,-362.91135459,0.00024596,2]
[312218189,1705692634823,-184.28,0.000246,2]
[312218190,1705692634837,-333.73936589,0.00024614,2]
[312218191,1705692634846,-454.89328073,0.00024637,2]
[312218192,1705692634855,-300.0,0.00024656,2]
[312218193,1705692634865,-500.0,0.00024657,2]
[312218194,1705692634878,-500.0,0.00024657,2]
[312218195,1705692634888,-500.0,0.00024657,2]
[312218196,1705692634897,-500.0,0.00024657,2]
[312218197,1705692634906,-502.27356523,0.00024657,2]
[312218198,1705692634916,-500.0,0.00024657,2]
[312218199,1705692634926,-500.0,0.00024657,2]
[312218200,1705692634935,-500.0,0.00024657,2]
[312218201,1705692634944,-500.0,0.00024657,2]
[312218202,1705692634954,-500.0,0.00024657,2]
[312218203,1705692634965,-500.0,0.00024657,2]
[312218204,1705692634975,-500.0,0.00024657,2]
[312218205,1705692634984,-500.0,0.00024657,2]
[312218206,1705692634993,-500.0,0.00024657,2]
[312218207,1705692635003,-500.0,0.00024657,2]
[312218208,1705692635013,-500.0,0.00024657,2]
[312218209,1705692635022,-500.0,0.00024657,2]
[312218210,1705692635032,-500.0,0.00024657,2]
[312218211,1705692635043,-376.94312207,0.00024657,2]
[312218212,1705692635053,-500.0,0.00024657,2]
[312218213,1705692635062,-500.0,0.00024657,2]
[312218214,1705692635072,-500.0,0.00024657,2]
[312218215,1705692635082,-500.0,0.00024657,2]
[312218216,1705692635091,-500.0,0.00024657,2]
[312218217,1705692635101,-500.0,0.00024657,2]
[312218218,1705692635110,-500.0,0.00024657,2]
[312218219,1705692635119,-500.0,0.00024657,2]
[312218220,1705692635129,-500.0,0.00024657,2]
[312218221,1705692635139,-500.0,0.00024657,2]
[312218222,1705692635149,-500.0,0.00024657,2]
[312218223,1705692635159,-500.0,0.00024657,2]
[312218224,1705692635169,-500.0,0.00024657,2]
[312218225,1705692635179,-500.0,0.00024657,2]
[312218226,1705692635189,-500.0,0.00024657,2]
[312218227,1705692635198,-500.0,0.00024657,2]
[312218228,1705692635208,-500.0,0.00024657,2]
[312218229,1705692635218,-500.0,0.00024657,2]
[312218230,1705692635228,-500.0,0.00024657,2]
[312218231,1705692635238,-500.0,0.00024657,2]
[312218232,1705692635247,-500.0,0.00024657,2]
[312218233,1705692635257,-500.0,0.00024657,2]
[312218234,1705692635266,-500.0,0.00024657,2]
[312218235,1705692635276,-500.0,0.00024657,2]
[312218236,1705692635285,-500.0,0.00024657,2]
[312218237,1705692635293,-500.0,0.00024657,2]
[312218238,1705692635302,-500.0,0.00024657,2]
[312218239,1705692635311,-500.0,0.00024657,2]
[312218240,1705692635320,-743.26,0.00024657,2]
[312218241,1705692635329,-500.0,0.00024657,2]
[312218242,1705692635338,-500.0,0.00024657,2]
[312218243,1705692635348,-500.0,0.00024657,2]
[312218244,1705692635357,-500.0,0.00024657,2]
[312218245,1705692635366,-500.0,0.00024657,2]
[312218246,1705692635376,-500.0,0.00024657,2]
[312218247,1705692635385,-500.0,0.00024657,2]
[312218248,1705692635394,-500.0,0.00024657,2]
[312218249,1705692635404,-504.71519571,0.00024657,2]
[312218250,1705692635413,-399.4049568,0.00024657,2]
[312218251,1705692635421,-500.0,0.00024657,2]
[312218252,1705692635430,-500.0,0.00024657,2]
[312218253,1705692635439,-500.0,0.00024657,2]
[312218254,1705692635448,-500.0,0.00024657,2]
[312218255,1705692635458,-500.0,0.00024657,2]
[312218256,1705692635467,-500.0,0.00024657,2]
[312218257,1705692635477,-500.0,0.00024657,2]
[312218258,1705692635487,-500.0,0.00024657,2]
[312218259,1705692635497,-500.0,0.00024657,2]
[312218260,1705692635506,-500.0,0.00024657,2]
[312218261,1705692635515,-500.0,0.00024657,2]
[312218262,1705692635525,-500.0,0.00024657,2]
[312218263,1705692635534,-500.0,0.00024657,2]
[312218264,1705692635543,-500.0,0.00024657,2]
[312218265,1705692635552,-500.0,0.00024657,2]
[312218266,1705692635561,-500.0,0.00024657,2]
[312218267,1705692635570,-500.0,0.00024657,2]
[312218268,1705692635580,-500.0,0.00024657,2]
[312218269,1705692635590,-500.0,0.00024657,2]
[312218270,1705692635599,-500.0,0.00024657,2]
[312218271,1705692635608,-493.95443697,0.00024657,2]
[312218272,1705692635617,-500.0,0.00024657,2]
[312218273,1705692635627,-500.0,0.00024657,2]
[312218274,1705692635636,-500.0,0.00024657,2]
[312218275,1705692635645,-500.0,0.00024657,2]
[312218276,1705692635655,-500.0,0.00024657,2]
[312218277,1705692635664,-500.0,0.00024657,2]
[312218278,1705692635674,-500.0,0.00024657,2]
[312218279,1705692635684,-500.0,0.00024657,2]
[312218280,1705692635695,-508.37475352,0.00024657,2]
[312218281,1705692635705,-418.2515255,0.00024657,2]
[312218282,1705692635715,-500.0,0.00024657,2]
[312218283,1705692635725,-500.0,0.00024657,2]
[312218284,1705692635736,-500.0,0.00024657,2]
[312218285,1705692635746,-500.0,0.00024657,2]
[312218286,1705692635755,-500.0,0.00024657,2]
[312218287,1705692635765,-607.82,0.00024657,2]
[312218288,1705692635775,-500.0,0.00024657,2]
[312218289,1705692635785,-500.0,0.00024657,2]
[312218290,1705692635794,-500.0,0.00024657,2]
[312218291,1705692635803,-171.65318506,0.00024657,2]
[312218292,1705692635813,-1000.0,0.00024657,2]
[312218293,1705692635822,-500.0,0.00024657,2]
[312218294,1705692635831,-500.0,0.00024657,2]
[312218295,1705692635840,-500.0,0.00024657,2]
[312218296,1705692635849,-500.0,0.00024657,2]
[312218297,1705692635858,-500.0,0.00024657,2]
[312218298,1705692635868,-500.0,0.00024657,2]
[312218299,1705692635878,-500.0,0.00024657,2]
[312218300,1705692635889,-500.0,0.00024657,2]
[312218301,1705692635900,-500.0,0.00024657,2]
[312218302,1705692635910,-500.0,0.00024657,2]
[312218303,1705692635932,-500.0,0.00024657,2]
[312218304,1705692635954,-500.0,0.00024657,2]
[312218305,1705692635979,-500.0,0.00024657,2]
[312218306,1705692636006,-500.0,0.00024657,2]
[312218307,1705692636035,-500.0,0.00024657,2]
[312218308,1705692636064,-500.0,0.00024657,2]
[312218309,1705692636089,-500.0,0.00024657,2]
[312218310,1705692636114,-511.4249444,0.00024657,2]
[312218311,1705692636124,-500.0,0.00024657,2]
[312218312,1705692636135,-500.0,0.00024657,2]
[312218313,1705692636145,-500.0,0.00024657,2]
[312218314,1705692636156,-500.0,0.00024657,2]
[312218315,1705692636167,-500.0,0.00024657,2]
[312218316,1705692636178,-500.0,0.00024657,2]
[312218317,1705692636189,-500.0,0.00024657,2]
[312218318,1705692636200,-500.0,0.00024657,2]
[312218319,1705692636210,-500.0,0.00024657,2]
[312218320,1705692636221,-500.0,0.00024657,2]
[312218321,1705692636233,-500.0,0.00024657,2]
[312218322,1705692636243,-500.0,0.00024657,2]
[312218323,1705692636253,-502.90738061,0.00024657,2]
[312218324,1705692636263,-500.0,0.00024657,2]
[312218325,1705692636274,-500.0,0.00024657,2]
[312218326,1705692636284,-530.48,0.00024657,2]
[312218327,1705692636294,-500.0,0.00024657,2]
[312218328,1705692636304,-500.0,0.00024657,2]
[312218329,1705692636314,-520.67,0.00024657,2]
[312218330,1705692636324,-500.0,0.00024657,2]
[312218331,1705692636334,-500.0,0.00024657,2]
[312218332,1705692636343,-500.0,0.00024657,2]
[312218333,1705692636353,-500.0,0.00024657,2]
[312218334,1705692636364,-500.0,0.00024657,2]
[312218335,1705692636374,-500.0,0.00024657,2]
[312218336,1705692636383,-500.0,0.00024657,2]
[312218337,1705692636394,-500.0,0.00024657,2]
[312218338,1705692636404,-500.0,0.00024657,2]
[312218339,1705692636414,-500.0,0.00024657,2]
[312218340,1705692636424,-500.0,0.00024657,2]
[312218341,1705692636434,-500.0,0.00024657,2]
[312218342,1705692636444,-500.0,0.00024657,2]
[312218343,1705692636453,-500.0,0.00024657,2]
[312218344,1705692636463,-500.0,0.00024657,2]
[312218345,1705692636474,-500.0,0.00024657,2]
[312218346,1705692636483,-500.0,0.00024657,2]
[312218347,1705692636494,-500.0,0.00024657,2]
[312218348,1705692636504,-500.0,0.00024657,2]
[312218349,1705692636514,-568.92909789,0.00024657,2]
[312218350,1705692636524,-500.0,0.00024657,2]
[312218351,1705692636533,-500.0,0.00024657,2]
[312218352,1705692636544,-500.0,0.00024657,2]
[312218353,1705692636554,-500.0,0.00024657,2]
[312218354,1705692636563,-500.0,0.00024657,2]
[312218355,1705692636573,-500.0,0.00024657,2]
[312218356,1705692636582,-244.35030773,0.00024657,2]
[312218357,1705692636592,-519.11,0.00024657,2]
[312218358,1705692636601,-279.03,0.00024657,2]
[312218359,1705692636611,-174.8437244,0.00024657,2]
[312218360,1705692636621,-500.0,0.00024657,2]
[312218361,1705692636631,-500.0,0.00024657,2]
[312218362,1705692636641,-500.0,0.00024657,2]
[312218363,1705692636650,-500.0,0.00024657,2]
[312218364,1705692636660,-500.0,0.00024657,2]
[312218365,1705692636670,-500.0,0.00024657,2]
[312218366,1705692636681,-500.0,0.00024657,2]
[312218367,1705692636690,-330.00222273,0.00024657,2]
[312218368,1705692636701,-500.0,0.00024657,2]
[312218369,1705692636712,-340.22582021,0.00024657,2]
[312218370,1705692636721,-500.0,0.00024657,2]
[312218371,1705692636733,-503.31836024,0.00024657,2]
[312218372,1705692636742,-500.0,0.00024657,2]
[312218373,1705692636751,-500.0,0.00024657,2]
[312218374,1705692636760,-500.0,0.00024657,2]
[312218375,1705692636769,-500.0,0.00024657,2]
[312218376,1705692636779,-500.0,0.00024657,2]
[312218377,1705692636788,-500.0,0.00024657,2]
[312218378,1705692636797,-333.18173879,0.00024657,2]
[312218379,1705692636808,-358.38433168,0.00024657,2]
[312218380,1705692636819,-500.0,0.00024657,2]
[312218381,1705692636829,-500.0,0.00024657,2]
[312218382,1705692636838,-500.0,0.00024657,2]
[312218383,1705692636848,-307.09127362,0.00024657,2]
[312218384,1705692636859,-620.61905636,0.00024657,2]
[312218385,1705692636870,-500.0,0.00024657,2]
[312218386,1705692636879,-500.0,0.00024657,2]
[312218387,1705692636889,-500.0,0.00024657,2]
[312218388,1705692636901,-500.0,0.00024657,2]
[312218389,1705692636911,-500.0,0.00024657,2]
[312218390,1705692636920,-500.0,0.00024657,2]
[312218391,1705692636930,-500.0,0.00024657,2]
[312218392,1705692636940,-500.0,0.00024657,2]
[312218393,1705692636950,-500.0,0.00024657,2]
[312218394,1705692636960,-500.0,0.00024657,2]
[312218395,1705692636970,-500.0,0.00024657,2]
[312218396,1705692636981,-500.0,0.00024657,2]
[312218397,1705692636990,-500.0,0.00024657,2]
[312218398,1705692636999,-500.0,0.00024657,2]